[Event "Titled Tuesday Blitz June 21 Late 2022"]
[White "Dauner, Benedikt"]
[Black "Gardezi, Arsal"]
[WhiteFideId "16225899"]
[BlackFideId "30949521"]
[WhiteElo "2230"]
[BlackElo "1781"]
[Result "1-0"]
[Round "07"]
[TimeControl "180+1"]
[Date "2022.06.22"]
[WhiteClock "0:01:13"]
[BlackClock "0:00:12"]

1. h3 {[%clk 0:03:00]}  d5 {[%clk 0:02:58]} 2. a3 {[%clk 0:03:01]}  e5 {[%clk 0:02:58]} 3. b3 {[%clk 0:03:01]}  c5 {[%clk 0:02:58]} 4. g3 {[%clk 0:03:02]}  Nc6 {[%clk 0:02:58]} 5. Bg2 {[%clk 0:03:03]}  Nf6 {[%clk 0:02:59]} 6. Bb2 {[%clk 0:03:03]}  Bd6 {[%clk 0:02:55]} 7. e3 {[%clk 0:03:03]}  e4 {[%clk 0:02:54]} 8. d3 {[%clk 0:03:04]}  exd3 {[%clk 0:02:46]} 9. cxd3 {[%clk 0:03:04]}  Bf5 {[%clk 0:02:34]} 10. g4 {[%clk 0:03:02]}  Bg6 {[%clk 0:02:34]} 11. f4 {[%clk 0:03:02]}  h5 {[%clk 0:02:26]} 12. f5 {[%clk 0:03:00]}  Bh7 {[%clk 0:02:17]} 13. Nd2 {[%clk 0:02:53]}  Qe7 {[%clk 0:02:06]} 14. Qe2 {[%clk 0:02:51]}  Bg3+ {[%clk 0:02:04]} 15. Kf1 {[%clk 0:02:51]}  g6 {[%clk 0:01:55]} 16. g5 {[%clk 0:02:48]}  Ne5 {[%clk 0:01:39]} 17. gxf6 {[%clk 0:02:47]}  Qxf6 {[%clk 0:01:40]} 18. Ngf3 {[%clk 0:02:46]}  Qxf5 {[%clk 0:01:39]} 19. e4 {[%clk 0:02:43]}  dxe4 {[%clk 0:01:35]} 20. Nxe4 {[%clk 0:02:44]}  O-O {[%clk 0:01:28]} 21. Nf6+ {[%clk 0:02:34]}  Qxf6 {[%clk 0:01:26]} 22. Bxe5 {[%clk 0:02:34]}  Bxe5 {[%clk 0:01:21]} 23. Qxe5 {[%clk 0:02:35]}  Qb6 {[%clk 0:01:19]} 24. Qc3 {[%clk 0:02:25]}  Rad8 {[%clk 0:01:16]} 25. Rd1 {[%clk 0:02:22]}  g5 {[%clk 0:01:15]} 26. Nxg5 {[%clk 0:02:18]}  Bf5 {[%clk 0:01:11]} 27. Be4 {[%clk 0:02:12]}  Bg6 {[%clk 0:00:51]} 28. Rg1 {[%clk 0:02:09]}  Qd6 {[%clk 0:00:47]} 29. Rd2 {[%clk 0:01:55]}  Rde8 {[%clk 0:00:26]} 30. Rf2 {[%clk 0:01:53]}  f5 {[%clk 0:00:20]} 31. Bxf5 {[%clk 0:01:37]}  Qf6 {[%clk 0:00:15]} 32. Ne6 {[%clk 0:01:24]}  Qxc3 {[%clk 0:00:13]} 33. Rxg6+ {[%clk 0:01:23]}  Kh7 {[%clk 0:00:12]} 34. Rg7+ {[%clk 0:01:14]}  Kh6 {[%clk 0:00:12]} 35. Rh7# {[%clk 0:01:13]} 1-0


[Site "https://www.chess.com"]

[Event "Titled Tuesday Blitz June 21 Late 2022"]
[White "Desideri, Ricardo Maruchi"]
[Black "Thiel, Thomas"]
[WhiteFideId "2110440"]
[BlackFideId "4615964"]
[WhiteElo "1945"]
[BlackElo "2220"]
[Result "0-1"]
[Round "07"]
[TimeControl "180+1"]
[Date "2022.06.22"]
[WhiteClock "0:00:16"]
[BlackClock "0:01:41"]

1. e4 {[%clk 0:02:58]}  d5 {[%clk 0:02:59]} 2. exd5 {[%clk 0:02:58]}  Nf6 {[%clk 0:02:59]} 3. Bb5+ {[%clk 0:02:56]}  Nbd7 {[%clk 0:02:56]} 4. c4 {[%clk 0:02:52]}  a6 {[%clk 0:02:54]} 5. Ba4 {[%clk 0:02:51]}  b5 {[%clk 0:02:52]} 6. cxb5 {[%clk 0:02:40]}  Nxd5 {[%clk 0:02:52]} 7. bxa6 {[%clk 0:02:15]}  Bxa6 {[%clk 0:02:49]} 8. d3 {[%clk 0:02:09]}  Nb4 {[%clk 0:02:48]} 9. Bc2 {[%clk 0:02:06]}  Nc5 {[%clk 0:02:42]} 10. Ba4+ {[%clk 0:01:43]}  c6 {[%clk 0:02:39]} 11. d4 {[%clk 0:01:36]}  Ncd3+ {[%clk 0:02:22]} 12. Kd2 {[%clk 0:01:36]}  Qxd4 {[%clk 0:02:21]} 13. Nf3 {[%clk 0:01:32]}  Qxf2+ {[%clk 0:02:18]} 14. Kc3 {[%clk 0:01:07]}  Nd5+ {[%clk 0:02:13]} 15. Kb3 {[%clk 0:00:40]}  Qb6+ {[%clk 0:02:12]} 16. Kc2 {[%clk 0:00:35]}  N3b4+ {[%clk 0:02:05]} 17. Kb3 {[%clk 0:00:20]}  Nd3+ {[%clk 0:01:51]} 18. Kc2 {[%clk 0:00:20]}  N5b4+ {[%clk 0:01:47]} 19. Kc3 {[%clk 0:00:16]}  Qc5+ {[%clk 0:01:46]} 20. Kd2 {[%clk 0:00:16]}  Rd8 {[%clk 0:01:41]} 0-1


[Site "https://www.chess.com"]

[Event "Titled Tuesday Blitz June 21 Late 2022"]
[White "Diaz Rosas, Julio Cesar"]
[Black "Fedoseev, Vladimir"]
[WhiteFideId "5105099"]
[BlackFideId "24130737"]
[WhiteElo "2278"]
[BlackElo "2726"]
[Result "0-1"]
[Round "07"]
[TimeControl "180+1"]
[Date "2022.06.21"]
[WhiteClock "0:00:04"]
[BlackClock "0:02:23"]

1. e4 {[%clk 0:02:59]}  c5 {[%clk 0:02:57]} 2. Nf3 {[%clk 0:02:59]}  d6 {[%clk 0:02:57]} 3. d4 {[%clk 0:02:59]}  cxd4 {[%clk 0:02:58]} 4. Nxd4 {[%clk 0:03:00]}  Nf6 {[%clk 0:02:58]} 5. Nc3 {[%clk 0:03:00]}  a6 {[%clk 0:02:59]} 6. Bg5 {[%clk 0:03:00]}  e6 {[%clk 0:02:58]} 7. f4 {[%clk 0:03:00]}  h6 {[%clk 0:02:58]} 8. Bh4 {[%clk 0:03:00]}  Qb6 {[%clk 0:02:58]} 9. Qd2 {[%clk 0:02:59]}  Qxb2 {[%clk 0:02:56]} 10. Rb1 {[%clk 0:02:59]}  Qa3 {[%clk 0:02:57]} 11. Be2 {[%clk 0:02:58]}  Nbd7 {[%clk 0:02:54]} 12. O-O {[%clk 0:02:56]}  Qc5 {[%clk 0:02:54]} 13. Kh1 {[%clk 0:02:34]}  Be7 {[%clk 0:02:52]} 14. f5 {[%clk 0:02:30]}  e5 {[%clk 0:02:51]} 15. Ne6 {[%clk 0:01:57]}  fxe6 {[%clk 0:02:46]} 16. fxe6 {[%clk 0:01:57]}  Nf8 {[%clk 0:02:46]} 17. Rxf6 {[%clk 0:01:42]}  Bxf6 {[%clk 0:02:44]} 18. Bh5+ {[%clk 0:01:39]}  Kd8 {[%clk 0:02:40]} 19. e7+ {[%clk 0:01:10]}  Bxe7 {[%clk 0:02:38]} 20. Bxe7+ {[%clk 0:00:32]}  Kxe7 {[%clk 0:02:39]} 21. Nd5+ {[%clk 0:00:33]}  Kd8 {[%clk 0:02:37]} 22. Rf1 {[%clk 0:00:06]}  Be6 {[%clk 0:02:34]} 23. Ne3 {[%clk 0:00:05]}  Nd7 {[%clk 0:02:33]} 24. Bg4 {[%clk 0:00:04]}  Bxg4 {[%clk 0:02:30]} 25. Nxg4 {[%clk 0:00:05]}  Rf8 {[%clk 0:02:30]} 26. Rd1 {[%clk 0:00:05]}  Rc8 {[%clk 0:02:28]} 27. Ne3 {[%clk 0:00:05]}  Nf6 {[%clk 0:02:25]} 28. Nf5 {[%clk 0:00:04]}  Nxe4 {[%clk 0:02:23]} 29. Qe2 {[%clk 0:00:04]}  Nf2+ {[%clk 0:02:23]} 0-1


[Site "https://www.chess.com"]

[Event "Titled Tuesday Blitz June 21 Late 2022"]
[White "Do Valle Cardoso, Lucas"]
[Black "Oro, Luis"]
[WhiteFideId "2163144"]
[BlackFideId "104094"]
[WhiteElo "2277"]
[BlackElo "2370"]
[Result "1-0"]
[Round "07"]
[TimeControl "180+1"]
[Date "2022.06.22"]
[WhiteClock "0:00:49"]
[BlackClock "0:01:42"]

1. d4 {[%clk 0:03:00]}  Nf6 {[%clk 0:02:59]} 2. c4 {[%clk 0:03:01]}  e6 {[%clk 0:02:59]} 3. Nc3 {[%clk 0:03:01]}  Bb4 {[%clk 0:02:59]} 4. Bd2 {[%clk 0:03:02]}  O-O {[%clk 0:02:58]} 5. Nf3 {[%clk 0:03:02]}  d5 {[%clk 0:02:58]} 6. e3 {[%clk 0:02:57]}  c5 {[%clk 0:02:56]} 7. a3 {[%clk 0:02:47]}  Bxc3 {[%clk 0:02:55]} 8. Bxc3 {[%clk 0:02:48]}  dxc4 {[%clk 0:02:53]} 9. Bxc4 {[%clk 0:02:42]}  cxd4 {[%clk 0:02:52]} 10. Nxd4 {[%clk 0:02:35]}  Nbd7 {[%clk 0:02:46]} 11. Bb4 {[%clk 0:02:23]}  Re8 {[%clk 0:02:45]} 12. O-O {[%clk 0:02:23]}  Nb6 {[%clk 0:02:44]} 13. Bb5 {[%clk 0:02:14]}  Bd7 {[%clk 0:02:44]} 14. Be2 {[%clk 0:02:13]}  Nbd5 {[%clk 0:02:40]} 15. Be1 {[%clk 0:02:07]}  Rc8 {[%clk 0:02:39]} 16. Rc1 {[%clk 0:02:03]}  Qb6 {[%clk 0:02:37]} 17. Rxc8 {[%clk 0:01:36]}  Rxc8 {[%clk 0:02:36]} 18. Qb1 {[%clk 0:01:23]}  e5 {[%clk 0:02:25]} 19. Nf5 {[%clk 0:01:14]}  g6 {[%clk 0:02:05]} 20. Ng3 {[%clk 0:00:59]}  Nc3 {[%clk 0:01:51]} 21. Bxc3 {[%clk 0:00:58]}  Rxc3 {[%clk 0:01:51]} 22. bxc3 {[%clk 0:00:59]}  Qc7 {[%clk 0:01:47]} 23. c4 {[%clk 0:00:57]}  Be6 {[%clk 0:01:45]} 24. Qb4 {[%clk 0:00:56]}  Nd7 {[%clk 0:01:42]} 25. Ne4 {[%clk 0:00:51]}  f5 {[%clk 0:01:42]} 26. Ng5 {[%clk 0:00:49]} 1-0


[Site "https://www.chess.com"]

[Event "Titled Tuesday Blitz June 21 Late 2022"]
[White "Flynn, Jacob"]
[Black "Goltseva, Ekaterina"]
[WhiteFideId "2509393"]
[BlackFideId "24173770"]
[WhiteElo "1896"]
[BlackElo "2086"]
[Result "0-1"]
[Round "07"]
[TimeControl "180+1"]
[Date "2022.06.22"]
[WhiteClock "0:00:19"]
[BlackClock "0:00:19"]

1. d4 {[%clk 0:03:00]}  Nf6 {[%clk 0:02:23]} 2. c4 {[%clk 0:02:32]}  e6 {[%clk 0:02:22]} 3. g3 {[%clk 0:02:32]}  d5 {[%clk 0:02:22]} 4. Bg2 {[%clk 0:02:33]}  Bb4+ {[%clk 0:02:22]} 5. Nd2 {[%clk 0:02:32]}  Be7 {[%clk 0:02:23]} 6. Ngf3 {[%clk 0:02:31]}  O-O {[%clk 0:02:23]} 7. O-O {[%clk 0:02:32]}  Nc6 {[%clk 0:02:23]} 8. Qc2 {[%clk 0:02:23]}  dxc4 {[%clk 0:02:18]} 9. Nxc4 {[%clk 0:02:23]}  Nxd4 {[%clk 0:02:18]} 10. Nxd4 {[%clk 0:02:23]}  Qxd4 {[%clk 0:02:19]} 11. Rd1 {[%clk 0:02:23]}  Qg4 {[%clk 0:02:16]} 12. Bf3 {[%clk 0:02:21]}  Qg6 {[%clk 0:02:16]} 13. Qb3 {[%clk 0:02:03]}  c6 {[%clk 0:02:12]} 14. Be3 {[%clk 0:01:59]}  Nd5 {[%clk 0:02:12]} 15. a4 {[%clk 0:01:52]}  Bf6 {[%clk 0:02:09]} 16. a5 {[%clk 0:01:50]}  a6 {[%clk 0:02:07]} 17. Bc5 {[%clk 0:01:49]}  Re8 {[%clk 0:02:06]} 18. Nd6 {[%clk 0:01:48]}  Rd8 {[%clk 0:02:03]} 19. Nxc8 {[%clk 0:01:47]}  Raxc8 {[%clk 0:02:01]} 20. Qxb7 {[%clk 0:01:48]}  Rb8 {[%clk 0:01:55]} 21. Qxa6 {[%clk 0:01:40]}  Bxb2 {[%clk 0:01:54]} 22. Bg2 {[%clk 0:01:31]}  Bxa1 {[%clk 0:01:52]} 23. Rxa1 {[%clk 0:01:29]}  Rb1+ {[%clk 0:01:46]} 24. Rxb1 {[%clk 0:01:27]}  Qxb1+ {[%clk 0:01:47]} 25. Bf1 {[%clk 0:01:28]}  Nc3 {[%clk 0:01:37]} 26. Qxc6 {[%clk 0:01:26]}  Nxe2+ {[%clk 0:01:29]} 27. Kg2 {[%clk 0:01:25]}  Qc2 {[%clk 0:01:16]} 28. a6 {[%clk 0:01:21]}  Nd4 {[%clk 0:01:13]} 29. Qc7 {[%clk 0:00:56]}  Qe4+ {[%clk 0:01:09]} 30. Kh3 {[%clk 0:00:56]}  Re8 {[%clk 0:00:53]} 31. a7 {[%clk 0:00:54]}  Nf3 {[%clk 0:00:48]} 32. Qf4 {[%clk 0:00:47]}  Ng1+ {[%clk 0:00:42]} 33. Kg4 {[%clk 0:00:33]}  Qg6+ {[%clk 0:00:34]} 34. Kh4 {[%clk 0:00:27]}  e5 {[%clk 0:00:19]} 35. Qxe5 {[%clk 0:00:20]}  Nf3+ {[%clk 0:00:19]} 36. Kh3 {[%clk 0:00:19]}  Nxe5 {[%clk 0:00:19]} 0-1


[Site "https://www.chess.com"]

[Event "Titled Tuesday Blitz June 21 Late 2022"]
[White "Guz, Ari"]
[Black "Bortnyk, Olexandr"]
[WhiteFideId "2825759"]
[BlackFideId "14120828"]
[WhiteElo "1913"]
[BlackElo "2723"]
[Result "1-0"]
[Round "07"]
[TimeControl "180+1"]
[Date "2022.06.21"]
[WhiteClock "0:00:09"]
[BlackClock "0:00:04"]

1. e4 {[%clk 0:03:00]}  d6 {[%clk 0:02:48]} 2. d4 {[%clk 0:03:00]}  Nf6 {[%clk 0:02:47]} 3. Nc3 {[%clk 0:03:00]}  Nbd7 {[%clk 0:02:29]} 4. Nf3 {[%clk 0:02:59]}  e5 {[%clk 0:02:28]} 5. Bc4 {[%clk 0:02:56]}  Be7 {[%clk 0:02:28]} 6. Be3 {[%clk 0:02:53]}  Ng4 {[%clk 0:02:25]} 7. Bc1 {[%clk 0:02:49]}  Ngf6 {[%clk 0:02:25]} 8. h3 {[%clk 0:02:47]}  h6 {[%clk 0:02:25]} 9. Be3 {[%clk 0:02:47]}  c6 {[%clk 0:02:25]} 10. a4 {[%clk 0:02:44]}  Qc7 {[%clk 0:02:26]} 11. Qe2 {[%clk 0:02:43]}  Nf8 {[%clk 0:02:22]} 12. O-O {[%clk 0:02:40]}  g5 {[%clk 0:02:20]} 13. Nh2 {[%clk 0:02:12]}  Ng6 {[%clk 0:02:09]} 14. Rad1 {[%clk 0:02:04]}  Nf4 {[%clk 0:02:04]} 15. Bxf4 {[%clk 0:02:03]}  gxf4 {[%clk 0:02:05]} 16. Kh1 {[%clk 0:01:59]}  Rg8 {[%clk 0:01:51]} 17. d5 {[%clk 0:01:52]}  c5 {[%clk 0:01:48]} 18. Bb5+ {[%clk 0:01:33]}  Kf8 {[%clk 0:01:48]} 19. Qd2 {[%clk 0:01:32]}  Nh7 {[%clk 0:01:41]} 20. Be2 {[%clk 0:01:30]}  Bd7 {[%clk 0:01:18]} 21. Bg4 {[%clk 0:01:25]}  Be8 {[%clk 0:01:17]} 22. Bf5 {[%clk 0:01:24]}  Nf6 {[%clk 0:01:12]} 23. g3 {[%clk 0:01:22]}  Bd7 {[%clk 0:01:04]} 24. gxf4 {[%clk 0:01:16]}  Bxf5 {[%clk 0:01:04]} 25. exf5 {[%clk 0:01:16]}  e4 {[%clk 0:01:03]} 26. f3 {[%clk 0:00:47]}  exf3 {[%clk 0:00:59]} 27. Qd3 {[%clk 0:00:46]}  Qd7 {[%clk 0:00:53]} 28. Rxf3 {[%clk 0:00:45]}  h5 {[%clk 0:00:34]} 29. Rg1 {[%clk 0:00:40]}  Rxg1+ {[%clk 0:00:32]} 30. Kxg1 {[%clk 0:00:41]}  Bd8 {[%clk 0:00:29]} 31. Rg3 {[%clk 0:00:37]}  c4 {[%clk 0:00:26]} 32. Qxc4 {[%clk 0:00:22]}  Qxf5 {[%clk 0:00:26]} 33. Nb5 {[%clk 0:00:21]}  Bb6+ {[%clk 0:00:25]} 34. Kg2 {[%clk 0:00:22]}  Nxd5 {[%clk 0:00:23]} 35. Nf1 {[%clk 0:00:20]}  Nxf4+ {[%clk 0:00:20]} 36. Kh1 {[%clk 0:00:18]}  Nxh3 {[%clk 0:00:16]} 37. Nxd6 {[%clk 0:00:15]}  Qf2 {[%clk 0:00:07]} 38. Rg2 {[%clk 0:00:10]}  Qf4 {[%clk 0:00:05]} 39. Qxf4 {[%clk 0:00:09]}  Nxf4 {[%clk 0:00:06]} 40. Rd2 {[%clk 0:00:09]}  Rd8 {[%clk 0:00:04]} 41. Nxb7 {[%clk 0:00:09]}  Rxd2 {[%clk 0:00:05]} 42. Nxd2 {[%clk 0:00:10]}  h4 {[%clk 0:00:04]} 43. a5 {[%clk 0:00:10]}  Be3 {[%clk 0:00:04]} 44. Nc4 {[%clk 0:00:10]}  Bf2 {[%clk 0:00:04]} 45. b4 {[%clk 0:00:10]}  h3 {[%clk 0:00:03]} 46. b5 {[%clk 0:00:11]}  Bg3 {[%clk 0:00:03]} 47. b6 {[%clk 0:00:10]}  a6 {[%clk 0:00:03]} 48. Nbd6 {[%clk 0:00:09]}  h2 {[%clk 0:00:04]} 49. Ne4 {[%clk 0:00:09]} 1-0


[Site "https://www.chess.com"]

[Event "Titled Tuesday Blitz June 21 Late 2022"]
[White "Ivic, Velimir"]
[Black "Chigaev, Maksim"]
[WhiteFideId "950122"]
[BlackFideId "4108116"]
[WhiteElo "2610"]
[BlackElo "2457"]
[Result "1-0"]
[Round "07"]
[TimeControl "180+1"]
[Date "2022.06.21"]
[WhiteClock "0:01:29"]
[BlackClock "0:00:08"]

1. e4 {[%clk 0:03:00]}  c5 {[%clk 0:03:00]} 2. Nf3 {[%clk 0:03:00]}  d6 {[%clk 0:03:01]} 3. d4 {[%clk 0:03:00]}  cxd4 {[%clk 0:03:01]} 4. Nxd4 {[%clk 0:03:00]}  Nf6 {[%clk 0:03:02]} 5. Nc3 {[%clk 0:03:01]}  a6 {[%clk 0:03:03]} 6. Rg1 {[%clk 0:03:02]}  h5 {[%clk 0:03:02]} 7. Bg5 {[%clk 0:03:01]}  b5 {[%clk 0:03:02]} 8. Qe2 {[%clk 0:02:56]}  Nbd7 {[%clk 0:02:56]} 9. O-O-O {[%clk 0:02:55]}  Bb7 {[%clk 0:02:56]} 10. f4 {[%clk 0:02:50]}  b4 {[%clk 0:02:57]} 11. Nd5 {[%clk 0:02:49]}  Qa5 {[%clk 0:02:36]} 12. Nb3 {[%clk 0:02:40]}  Qd8 {[%clk 0:02:36]} 13. Qe1 {[%clk 0:02:22]}  e6 {[%clk 0:01:14]} 14. Qxb4 {[%clk 0:02:21]}  Rb8 {[%clk 0:00:56]} 15. Nxf6+ {[%clk 0:02:21]}  gxf6 {[%clk 0:00:54]} 16. Bh4 {[%clk 0:02:22]}  Be7 {[%clk 0:00:46]} 17. Bd3 {[%clk 0:02:07]}  Rg8 {[%clk 0:00:30]} 18. h3 {[%clk 0:02:03]}  Qc7 {[%clk 0:00:19]} 19. g4 {[%clk 0:01:53]}  hxg4 {[%clk 0:00:19]} 20. hxg4 {[%clk 0:01:54]}  d5 {[%clk 0:00:17]} 21. Qe1 {[%clk 0:01:47]}  Qxf4+ {[%clk 0:00:17]} 22. Kb1 {[%clk 0:01:46]}  dxe4 {[%clk 0:00:17]} 23. Bg3 {[%clk 0:01:44]}  Qxg4 {[%clk 0:00:16]} 24. Be2 {[%clk 0:01:35]}  Qf5 {[%clk 0:00:08]} 25. Bxb8 {[%clk 0:01:33]}  Rxg1 {[%clk 0:00:08]} 26. Qxg1 {[%clk 0:01:34]}  Nxb8 {[%clk 0:00:08]} 27. Qb6 {[%clk 0:01:29]} 1-0


[Site "https://www.chess.com"]

[Event "Titled Tuesday Blitz June 21 Late 2022"]
[White "Jiganchine, Roman"]
[Black "Gallegos Diaz, Carlos Alberto"]
[WhiteFideId "2603667"]
[BlackFideId "3900886"]
[WhiteElo "2240"]
[BlackElo "2362"]
[Result "1-0"]
[Round "07"]
[TimeControl "180+1"]
[Date "2022.06.22"]
[WhiteClock "0:00:13"]
[BlackClock "0:00:08"]

1. Nf3 {[%clk 0:03:00]}  d6 {[%clk 0:03:00]} 2. d4 {[%clk 0:02:55]}  Nf6 {[%clk 0:03:01]} 3. Nc3 {[%clk 0:02:53]}  c6 {[%clk 0:03:01]} 4. e4 {[%clk 0:02:53]}  Qa5 {[%clk 0:03:01]} 5. Bd3 {[%clk 0:02:52]}  e5 {[%clk 0:03:00]} 6. O-O {[%clk 0:02:51]}  Be7 {[%clk 0:03:00]} 7. Re1 {[%clk 0:02:49]}  O-O {[%clk 0:03:00]} 8. h3 {[%clk 0:02:46]}  Re8 {[%clk 0:02:59]} 9. Be3 {[%clk 0:02:36]}  Nbd7 {[%clk 0:02:58]} 10. Ne2 {[%clk 0:02:30]}  d5 {[%clk 0:02:49]} 11. Ng3 {[%clk 0:02:18]}  dxe4 {[%clk 0:02:44]} 12. Nxe4 {[%clk 0:02:16]}  Nxe4 {[%clk 0:02:43]} 13. Bxe4 {[%clk 0:02:16]}  Nf6 {[%clk 0:02:41]} 14. Bd2 {[%clk 0:02:05]}  Qb6 {[%clk 0:02:34]} 15. dxe5 {[%clk 0:01:49]}  Nxe4 {[%clk 0:02:32]} 16. Rxe4 {[%clk 0:01:49]}  Qxb2 {[%clk 0:02:28]} 17. Rb1 {[%clk 0:01:16]}  Qxa2 {[%clk 0:02:24]} 18. Ra1 {[%clk 0:01:15]}  Qe6 {[%clk 0:02:04]} 19. Bc3 {[%clk 0:01:11]}  c5 {[%clk 0:01:52]} 20. Rg4 {[%clk 0:00:58]}  h6 {[%clk 0:01:23]} 21. Nh2 {[%clk 0:00:46]}  b5 {[%clk 0:00:54]} 22. Rg3 {[%clk 0:00:38]}  b4 {[%clk 0:00:52]} 23. Bb2 {[%clk 0:00:38]}  a5 {[%clk 0:00:52]} 24. Ng4 {[%clk 0:00:37]}  Kh8 {[%clk 0:00:38]} 25. Qf3 {[%clk 0:00:35]}  Bd7 {[%clk 0:00:34]} 26. Nf6 {[%clk 0:00:26]}  Bc6 {[%clk 0:00:26]} 27. Qh5 {[%clk 0:00:24]}  Bf8 {[%clk 0:00:19]} 28. Re1 {[%clk 0:00:21]}  a4 {[%clk 0:00:18]} 29. Nxe8 {[%clk 0:00:18]}  Rxe8 {[%clk 0:00:18]} 30. f4 {[%clk 0:00:18]}  a3 {[%clk 0:00:15]} 31. f5 {[%clk 0:00:17]}  Qd5 {[%clk 0:00:12]} 32. Ba1 {[%clk 0:00:16]}  Qd4+ {[%clk 0:00:10]} 33. Bxd4 {[%clk 0:00:15]}  cxd4 {[%clk 0:00:09]} 34. f6 {[%clk 0:00:15]}  g6 {[%clk 0:00:09]} 35. Rxg6 {[%clk 0:00:14]}  fxg6 {[%clk 0:00:09]} 36. Qxg6 {[%clk 0:00:14]}  Bc5 {[%clk 0:00:08]} 37. Kh2 {[%clk 0:00:13]} 1-0


[Site "https://www.chess.com"]

[Event "Titled Tuesday Blitz June 21 Late 2022"]
[White "Kamsky, Gata"]
[Black "Yoo, Christopher Woojin"]
[WhiteFideId "2000024"]
[BlackFideId "30909694"]
[WhiteElo "2645"]
[BlackElo "2105"]
[Result "1-0"]
[Round "07"]
[TimeControl "180+1"]
[Date "2022.06.21"]
[WhiteClock "0:01:29"]
[BlackClock "0:00:02"]

1. d4 {[%clk 0:03:00]}  Nf6 {[%clk 0:03:00]} 2. Nf3 {[%clk 0:02:59]}  d5 {[%clk 0:02:58]} 3. Bf4 {[%clk 0:02:59]}  c5 {[%clk 0:02:59]} 4. e3 {[%clk 0:02:58]}  Nc6 {[%clk 0:02:54]} 5. c3 {[%clk 0:02:58]}  Bg4 {[%clk 0:02:53]} 6. Qb3 {[%clk 0:02:54]}  Qc8 {[%clk 0:02:45]} 7. Ne5 {[%clk 0:02:51]}  c4 {[%clk 0:02:31]} 8. Qa4 {[%clk 0:02:47]}  Bd7 {[%clk 0:02:29]} 9. Nxd7 {[%clk 0:02:46]}  Nxd7 {[%clk 0:02:21]} 10. b3 {[%clk 0:02:43]}  e5 {[%clk 0:01:35]} 11. Bxe5 {[%clk 0:02:39]}  Ndxe5 {[%clk 0:01:21]} 12. dxe5 {[%clk 0:02:38]}  cxb3 {[%clk 0:01:15]} 13. axb3 {[%clk 0:02:38]}  Be7 {[%clk 0:01:15]} 14. Bb5 {[%clk 0:02:34]}  O-O {[%clk 0:01:15]} 15. Bxc6 {[%clk 0:02:33]}  bxc6 {[%clk 0:01:15]} 16. O-O {[%clk 0:02:33]}  c5 {[%clk 0:01:14]} 17. Nd2 {[%clk 0:02:30]}  Qf5 {[%clk 0:01:14]} 18. Nf3 {[%clk 0:02:28]}  Rfb8 {[%clk 0:01:14]} 19. Rfd1 {[%clk 0:02:22]}  Qe6 {[%clk 0:01:14]} 20. b4 {[%clk 0:02:08]}  Rb6 {[%clk 0:01:04]} 21. bxc5 {[%clk 0:02:04]}  Bxc5 {[%clk 0:01:05]} 22. Qa5 {[%clk 0:02:00]}  Rc6 {[%clk 0:00:55]} 23. Nd4 {[%clk 0:01:59]}  Bxd4 {[%clk 0:00:55]} 24. cxd4 {[%clk 0:01:59]}  a6 {[%clk 0:00:49]} 25. e4 {[%clk 0:01:56]}  Qg4 {[%clk 0:00:41]} 26. exd5 {[%clk 0:01:54]}  Rg6 {[%clk 0:00:41]} 27. g3 {[%clk 0:01:54]}  Rh6 {[%clk 0:00:37]} 28. Qd2 {[%clk 0:01:49]}  Rd8 {[%clk 0:00:11]} 29. d6 {[%clk 0:01:48]}  f6 {[%clk 0:00:10]} 30. Rxa6 {[%clk 0:01:38]}  Kh8 {[%clk 0:00:06]} 31. Rda1 {[%clk 0:01:37]}  Qf3 {[%clk 0:00:03]} 32. Qe3 {[%clk 0:01:34]}  Qd5 {[%clk 0:00:03]} 33. e6 {[%clk 0:01:32]}  Qh5 {[%clk 0:00:02]} 34. h4 {[%clk 0:01:31]}  Rg8 {[%clk 0:00:02]} 35. Ra8 {[%clk 0:01:29]} 1-0


[Site "https://www.chess.com"]

[Event "Titled Tuesday Blitz June 21 Late 2022"]
[White "Keymer, Vincent"]
[Black "Fishbein, Alexander"]
[WhiteFideId "12940690"]
[BlackFideId "2000377"]
[WhiteElo "2548"]
[BlackElo "2442"]
[Result "*"]
[Round "07"]
[TimeControl "180+1"]
[Date "2022.06.21"]
[WhiteClock "0:01:21"]
[BlackClock "0:00:50"]

1. Nf3 {[%clk 0:03:00]}  Nf6 {[%clk 0:02:59]} 2. c4 {[%clk 0:03:00]}  c5 {[%clk 0:02:54]} 3. Nc3 {[%clk 0:02:59]}  b6 {[%clk 0:02:54]} 4. g3 {[%clk 0:02:44]}  Bb7 {[%clk 0:02:53]} 5. Bg2 {[%clk 0:02:44]}  g6 {[%clk 0:02:54]} 6. b3 {[%clk 0:02:37]}  Bg7 {[%clk 0:02:53]} 7. Bb2 {[%clk 0:02:38]}  O-O {[%clk 0:02:53]} 8. O-O {[%clk 0:02:38]}  Nc6 {[%clk 0:02:53]} 9. e3 {[%clk 0:02:30]}  d5 {[%clk 0:02:50]} 10. Nxd5 {[%clk 0:02:26]}  Nxd5 {[%clk 0:02:50]} 11. Bxg7 {[%clk 0:02:27]}  Kxg7 {[%clk 0:02:50]} 12. cxd5 {[%clk 0:02:28]}  Qxd5 {[%clk 0:02:48]} 13. d4 {[%clk 0:02:29]}  Rad8 {[%clk 0:02:38]} 14. Rc1 {[%clk 0:02:15]}  Qh5 {[%clk 0:02:25]} 15. Nd2 {[%clk 0:02:05]}  Qxd1 {[%clk 0:02:23]} 16. Rfxd1 {[%clk 0:02:06]}  Na5 {[%clk 0:02:10]} 17. dxc5 {[%clk 0:02:05]}  Bxg2 {[%clk 0:01:38]} 18. Kxg2 {[%clk 0:02:06]}  Rd5 {[%clk 0:01:28]} 19. cxb6 {[%clk 0:02:02]}  axb6 {[%clk 0:01:29]} 20. Ne4 {[%clk 0:01:56]}  Rfd8 {[%clk 0:01:29]} 21. Rxd5 {[%clk 0:01:56]}  Rxd5 {[%clk 0:01:28]} 22. Rc7 {[%clk 0:01:54]}  Re5 {[%clk 0:01:18]} 23. Nc3 {[%clk 0:01:42]}  Re6 {[%clk 0:01:17]} 24. Nd5 {[%clk 0:01:37]}  Kf8 {[%clk 0:01:08]} 25. b4 {[%clk 0:01:24]}  Nc6 {[%clk 0:01:07]} 26. Rc8+ {[%clk 0:01:25]}  Kg7 {[%clk 0:01:06]} 27. Nc7 {[%clk 0:01:26]}  Re5 {[%clk 0:00:50]} 28. Ne8+ {[%clk 0:01:25]}  Kf8 {[%clk 0:00:50]} 29. Nd6+ {[%clk 0:01:21]} *


[Site "https://www.chess.com"]